Cogmind - Beta 13 @@@ ROGUE MODE // 2024.07.06 @ 15:07:44 Player: Minty Result: Self-destructed Performance ------------- Evolutions (3) 1500 Regions Visited (8) 1600 Robots Destroyed (18) 90 Value Destroyed (309) 309 Prototype IDs (29) 580 Alien Tech Used (0) 0 Bonus (721) 721 TOTAL SCORE: 4800 Bonus ------- Follower Combat Kills 21 Entered Garrisons 400 Aligned with FarCom 300 Cogmind --------- Core Integrity 700/700 Matter 254/300 Energy 125/125 System Corruption 1% Temperature Cool (0) Movement Hovering (120) Ox1 Location -7/Garrison Parts ------- > --- POWER (1) -------- Light Ion Engine > --- PROPULSION (4) --- Improved Hover Unit Improved Hover Unit > --- UTILITY (5) ------ Small Storage Unit 0b10 Alert Chip > --- WEAPON (3) ------- Light Assault Rifle Light Assault Rifle Light Assault Rifle > --- INVENTORY (8) ---- Light Ion Engine High-capacity Matter Pod (200) Advanced Weight Redist. System Shock Rifle Arc Projector Pulse Rifle Light Assault Rifle Peak State ------------ > --- POWER ------------ Light Ion Engine > --- PROPULSION ------- Improved Hover Unit Improved Hover Unit > --- UTILITY ---------- Small Storage Unit 0b10 Alert Chip > --- WEAPON ----------- Shock Rifle Light Assault Rifle Light Assault Rifle > --- INVENTORY -------- High-capacity Matter Pod Advanced Weight Redist. System [Rating: 17] Favorites ----------- Power Ion Engine Engine Ion Engine Propulsion Improved Hover Unit Leg Aluminum Leg Hover Unit Improved Hover Unit Utility Small Storage Unit Device Shield Generator Storage Small Storage Unit Processor 0b10 Alert Chip Weapon Light Assault Rifle Energy Gun Shock Rifle Ballistic Gun Light Assault Rifle Build | -11 -10 -10 -10 -9 -8 -8 -7 -7 ------- Run | Yrd Mat Min Exi Min Mat Gar Fac Gar Slots Evolved 6 | . . . . . 4 . 2 . Power . | . . . . . . . . . Propulsion 2 | . . . . . 1 . 1 . Utility 3 | . . . . . 2 . 1 . Weapon 1 | . . . . . 1 . . . Parts Attached 15 | . 4 1 . . . 10 . . Power 1 | . . . . . . 1 . . Engine 1 | . . . . . . 1 . . Core . | . . . . . . . . . Reactor . | . . . . . . . . . Propulsion 4 | . 2 . . . . 2 . . Treads . | . . . . . . . . . Leg . | . . . . . . . . . Wheel . | . . . . . . . . . Hover 4 | . 2 . . . . 2 . . Flight . | . . . . . . . . . Utility 4 | . 2 1 . . . 1 . . Device 2 | . 1 1 . . . . . . Storage . | . . . . . . . . . Processor 2 | . 1 . . . . 1 . . Hackware . | . . . . . . . . . Protection . | . . . . . . . . . Artifact . | . . . . . . . . . Weapon 6 | . . . . . . 6 . . Energy Gun 2 | . . . . . . 2 . . Energy Cannon . | . . . . . . . . . Ballistic Gun 4 | . . . . . . 4 . . Ballistic Cannon . | . . . . . . . . . Launcher . | . . . . . . . . . Special Weapon . | . . . . . . . . . Impact Weapon . | . . . . . . . . . Slashing Weapon . | . . . . . . . . . Piercing Weapon . | . . . . . . . . . Special Melee Weapon . | . . . . . . . . . Unidentified Prototypes . | . . . . . . . . . Parts Lost 5 | . . . . . 1 4 . . Power 1 | . . . . . . 1 . . Propulsion 2 | . . . . . . 2 . . Utility 1 | . . . . . 1 . . . Weapon 1 | . . . . . . 1 . . Highest Loss Streak 5 | . . . . . 1 5 . . To Critical Strikes . | . . . . . . . . . Average Slot Usage (%) 83 | . 99 100 100 100 61 53 61 61 Engine 11 | . 14 14 14 14 9 5 7 7 Leg 1 | . 9 . . . . . . . Hover 21 | . 18 28 28 28 18 14 15 15 Device 8 | . 9 14 14 14 7 . . . Storage 11 | . 14 14 14 14 9 9 7 7 Processor 3 | . 3 . . . . 7 7 7 Ballistic Gun 24 | . 28 28 28 28 18 14 23 23 Naked Turns . | . . . . . . . . . Heaviest Build 14 | 12 14 14 14 14 14 13 11 11 Greatest Support 20 | 20 20 14 14 14 14 14 14 14 Greatest Overweight (x) 1 | . 1 . . . . 1 . 1 Average Overweight (x) . | . . . . . . . . . Largest Inventory Capacity 8 | . 8 8 8 8 8 8 8 8 Average Capacity 8 | . 8 8 8 8 8 8 8 8 Most Carried 8 | . 8 8 8 8 8 8 7 7 Average Carried 7 | . 7 8 8 8 8 5 5 7 Final Capacity 8 | 8 8 8 8 8 8 8 8 8 Final Carried 8 | 6 8 8 8 8 8 5 7 7 Class Distribution -------------------- 77% | Mutant 22% | Skirmisher Dominant Class ---------------- Mutant | -10/Materials Mutant | -10/Mines Mutant | -10/Exiles Mutant | -9/Mines Mutant | -8/Materials Skirmisher | -8/Garrison Skirmisher | -7/Factory Skirmisher | -7/Garrison Resources | -11 -10 -10 -10 -9 -8 -8 -7 -7 ----------- Run | Yrd Mat Min Exi Min Mat Gar Fac Gar Matter Collected 573 | 200 98 120 . 94 . 61 . . Remotely . | . . . . . . . . . Salvage Created 436 | . 187 40 . 107 . 102 . . Parts 36 | . 19 3 . 7 . 7 . . Haulers Intercepted 1 | . 1 . . . . . . . Recyclers Shooed . | . . . . . . . . . Parts Field Recycled . | . . . . . . . . . Retrieved Matter . | . . . . . . . . . Parts Self-Destructed . | . . . . . . . . . Prevented . | . . . . . . . . . Kills | -11 -10 -10 -10 -9 -8 -8 -7 -7 ------- Run | Yrd Mat Min Exi Min Mat Gar Fac Gar Combat Hostiles Destroyed 16 | . 3 3 . 5 . 5 . . Guns 14 | . 3 3 . 5 . 3 . . AOE 2 | . . . . . . 2 . . Classes Destroyed 5 | . 3 1 . . . 1 . . Hauler 1 | . 1 . . . . . . . Watcher 1 | . 1 . . . . . . . Swarmer 11 | . . 3 . 4 . 4 . . Grunt 4 | . 3 . . 1 . . . . Sentry 1 | . . . . . . 1 . . Best Kill Streak 4 | . 3 3 . 4 . 4 . . Combat Bots Only 4 | . 2 3 . 4 . 4 . . Max Kills in Single Turn 2 | . 1 1 . 2 . 2 . . Gunslinging 1 | . . . . 1 . . . . Exploded 2 | . . . . . . 2 . . Melee . | . . . . . . . . . Uniques/NPCs Destroyed . | . . . . . . . . . Combat | -11 -10 -10 -10 -9 -8 -8 -7 -7 -------- Run | Yrd Mat Min Exi Min Mat Gar Fac Gar Hostile Shots Fired 93 | . 16 14 . 29 16 16 . 2 Missed 39 | . 10 7 . 10 7 5 . . Damage Taken 534 | . 60 37 . 124 130 138 . 45 Core 93 | . 8 . . 16 48 21 . . Absorbed by Shields 91 | . 5 15 . 49 15 . . 7 Core Remaining (%) 92 | 100 . . . 90 . 87 . . Volleys Fired 40 | . 13 6 . 12 . 8 . 1 Largest 3 | . 2 2 . 2 . 3 . 3 Hottest 90 | . 40 40 . 40 . 90 . 60 Shots Fired 83 | . 26 12 . 24 . 18 . 3 Gun 83 | . 26 12 . 24 . 18 . 3 Cannon . | . . . . . . . . . Launcher . | . . . . . . . . . Special . | . . . . . . . . . Kinetic 77 | . 26 12 . 24 . 12 . 3 Thermal . | . . . . . . . . . Explosive . | . . . . . . . . . Electromagnetic 6 | . . . . . . 6 . . Robot Hit Streak 8 | . 7 8 . 7 . 4 . . Robot Miss Streak 4 | . 3 2 . 4 . 2 . . Penetration Max . | . . . . . . . . . Secondary Targets 2 | . . . . 1 . 1 . . Max Gunslinging Chain 1 | . . . . 1 . 1 . . Shots Hit Robots 48 | . 16 8 . 14 . 10 . . Core Hits 29 | . 11 3 . 8 . 7 . . Critical Kills 2 | . . . . 2 . . . . Critical Parts Destroyed . | . . . . . . . . . Critical Strikes 2 | . . . . 2 . . . . Destroy 2 | . . . . 2 . . . . Melee Attacks . | . . . . . . . . . Impact . | . . . . . . . . . Slashing . | . . . . . . . . . Piercing . | . . . . . . . . . Sneak Attacks . | . . . . . . . . . Combat Hostiles . | . . . . . . . . . Follow-up Attacks . | . . . . . . . . . Damage Inflicted 557 | . 157 74 . 118 6 182 . 20 Guns 457 | . 157 74 . 118 . 108 . . Cannons . | . . . . . . . . . Explosions 74 | . . . . . . 74 . . Melee . | . . . . . . . . . Ramming 26 | . . . . . 6 . . 20 Kinetic 399 | . 157 74 . 118 . 50 . . Thermal 74 | . . . . . . 74 . . Explosive . | . . . . . . . . . Electromagnetic 58 | . . . . . . 58 . . Impact . | . . . . . . . . . Slashing . | . . . . . . . . . Piercing . | . . . . . . . . . Highest Corruption 1 | . . . . . . . . 1 Average Corruption 1 | . . . . . . . . 1 Corruption Purged . | . . . . . . . . . Corruption Blocked . | . . . . . . . . . Overload Shots . | . . . . . . . . . Overflow Damage . | . . . . . . . . . Projectiles . | . . . . . . . . . Explosions . | . . . . . . . . . Melee . | . . . . . . . . . Knockbacks . | . . . . . . . . . Impact . | . . . . . . . . . Kinetic . | . . . . . . . . . Secondary . | . . . . . . . . . Self-Inflicted Damage 23 | . . . . . 3 . . 20 Shots . | . . . . . . . . . Rammed 1 | . . . . . 1 . . . Targets Rammed 1 | . . . . . 1 . . . Kicked . | . . . . . . . . . Crushed . | . . . . . . . . . Highest Temperature 102 | . 12 8 . 16 14 102 . 6 Average Temperature 13 | . 5 4 . 6 14 36 . 4 Received Heat Transfer 193 | . 28 . . 32 84 36 . 13 Siege Activations . | . . . . . . . . . Robots Corrupted . | . . . . . . . . . Combat Hostiles . | . . . . . . . . . Parts Fried . | . . . . . . . . . Impact Corruptions . | . . . . . . . . . Robots Melted . | . . . . . . . . . Combat Hostiles . | . . . . . . . . . Parts Melted 2 | . . . . . . 2 . . Heat Transferred 150 | . . . . . . 150 . . Parts Sabotaged . | . . . . . . . . . Parts Stolen . | . . . . . . . . . Parts Stripped . | . . . . . . . . . Power Chain Reactions 1 | . . . . . . 1 . . Alert | -11 -10 -10 -10 -9 -8 -8 -7 -7 ------- Run | Yrd Mat Min Exi Min Mat Gar Fac Gar Peak Influence 188 | . 102 109 . 188 129 175 91 112 Initial 91 | . . 39 . . 72 83 91 72 Average 82 | . 68 52 . 61 92 122 91 94 Maximum Alert Level . | . . . . . . . . . Low Security (%) 100 | . 100 100 . 100 100 100 100 100 Level 1 . | . . . . . . . . . Level 2 . | . . . . . . . . . Level 3 . | . . . . . . . . . Level 4 . | . . . . . . . . . Level 5 . | . . . . . . . . . High Security . | . . . . . . . . . Max Security . | . . . . . . . . . Squads Dispatched 6 | . 2 1 . . 2 . 1 . Investigation 6 | . 2 1 . . 2 . 1 . Extermination . | . . . . . . . . . Reinforcement . | . . . . . . . . . Assault . | . . . . . . . . . Garrison . | . . . . . . . . . Intercept . | . . . . . . . . . Searches Triggered . | . . . . . . . . . Construction Impeded . | . . . . . . . . . Haulers Reinforced . | . . . . . . . . . Active Scanning Responses . | . . . . . . . . . Cargo Convoy Interrupts . | . . . . . . . . . Stealth | -11 -10 -10 -10 -9 -8 -8 -7 -7 --------- Run | Yrd Mat Min Exi Min Mat Gar Fac Gar Distress Signals 1 | . 1 . . . . . . . Communications Jammed . | . . . . . . . . . Distress Signals . | . . . . . . . . . Times Spotted 35 | . 8 3 . 10 8 3 . 3 Peak Tracking Total 7 | . 4 3 . 6 7 3 . 5 Tactical Retreats 2 | . . . . 1 . 1 . . Traps | -11 -10 -10 -10 -9 -8 -8 -7 -7 ------- Run | Yrd Mat Min Exi Min Mat Gar Fac Gar Traps Triggered 4 | . 1 . . . . 3 . . Indirectly . | . . . . . . . . . Trap Hack Attempts . | . . . . . . . . . Triggered . | . . . . . . . . . Disarmed . | . . . . . . . . . Reprogrammed . | . . . . . . . . . Reused . | . . . . . . . . . Traps Extracted . | . . . . . . . . . Installed . | . . . . . . . . . Triggered . | . . . . . . . . . Machines | -11 -10 -10 -10 -9 -8 -8 -7 -7 ---------- Run | Yrd Mat Min Exi Min Mat Gar Fac Gar Machines Disabled . | . . . . . . . . . Max in Single Turn . | . . . . . . . . . Machines Repaired . | . . . . . . . . . Machines Dismantled . | . . . . . . . . . Machines Sabotaged . | . . . . . . . . . Overloaded Fab Kills . | . . . . . . . . . Hacking | -11 -10 -10 -10 -9 -8 -8 -7 -7 --------- Run | Yrd Mat Min Exi Min Mat Gar Fac Gar Machines Accessed 14 | . 4 1 2 1 3 1 1 1 Terminals 6 | . 2 . . . 2 1 . 1 Fabricators . | . . . . . . . . . Repair Stations 1 | . 1 . . . . . . . Recycling Units 1 | . 1 . . . . . . . Scanalyzers . | . . . . . . . . . Garrison Access 2 | . . . . . 1 . 1 . Total Hacks 35 | . 14 1 2 1 7 2 4 4 Successful 21 | . 9 1 2 1 5 1 1 1 Failed 14 | . 5 . . . 2 1 3 3 Catastrophic 3 | . 2 . . . . . 1 . Database Lockouts . | . . . . . . . . . Manual 10 | . 7 . 2 . 1 . . . Terminals 24 | . 12 . . . 6 2 . 4 Fabricators . | . . . . . . . . . Repair Stations 1 | . 1 . . . . . . . Recycling Units 1 | . 1 . . . . . . . Scanalyzers . | . . . . . . . . . Garrison Access 5 | . . . . . 1 . 4 . Terminal Hacks 14 | . 5 1 2 1 3 1 . 1 Record 1 | . . . 1 . . . . . Part Schematic 1 | . 1 . . . . . . . Prototype ID Bank 3 | . 2 . . . 1 . . . Open Door 3 | . . 1 . 1 . 1 . . Emergency Access Points 1 | . . . . . 1 . . . Alert Level 2 | . 1 . . . 1 . . . Security Status 1 | . 1 . . . . . . . Garrison Registry 1 | . . . . . . . . 1 Derelict Proto ID Bank 1 | . . . 1 . . . . . Fabricator Hacks . | . . . . . . . . . Repair Station Hacks . | . . . . . . . . . Recycling Unit Hacks 1 | . 1 . . . . . . . Report Inventory 1 | . 1 . . . . . . . Scanalyzer . | . . . . . . . . . Garrison Access Hacks 2 | . . . . . 1 . 1 . Unlock Access 2 | . . . . . 1 . 1 . Unauthorized Hacks 4 | . 3 . . . 1 . . . Terminals 3 | . 2 . . . 1 . . . Botnet 2 | . 1 . . . 1 . . . Operators 1 | . 1 . . . . . . . Fabricators . | . . . . . . . . . Repair Stations 1 | . 1 . . . . . . . Mechanics 1 | . 1 . . . . . . . Recycling Units . | . . . . . . . . . Scanalyzers . | . . . . . . . . . Garrison Access . | . . . . . . . . . Data Cores Recovered . | . . . . . . . . . Used . | . . . . . . . . . Hacking Detections 7 | . 2 . . . 2 1 1 1 Full Trace Events 5 | . 1 . . . 2 . 1 1 Feedback Events 1 | . . . . . . . 1 . Corruption 1 | . . . . . . . 1 . Feedback Blocked . | . . . . . . . . . Robot Schematics Acquired . | . . . . . . . . . Robots Built . | . . . . . . . . . Authchips . | . . . . . . . . . Time . | . . . . . . . . . Total Robot Build Rating . | . . . . . . . . . Part Schematics Acquired 1 | . 1 . . . . . . . Parts Built . | . . . . . . . . . Authchips . | . . . . . . . . . Time . | . . . . . . . . . Total Part Build Rating . | . . . . . . . . . Parts Repaired . | . . . . . . . . . Time . | . . . . . . . . . Parts Recycled . | . . . . . . . . . Recycled Matter . | . . . . . . . . . Retrieved Matter . | . . . . . . . . . Retrieved Components . | . . . . . . . . . Parts Scanalyzed . | . . . . . . . . . Part Schematics Acquired . | . . . . . . . . . Parts Damaged . | . . . . . . . . . Bothacking | -11 -10 -10 -10 -9 -8 -8 -7 -7 ------------ Run | Yrd Mat Min Exi Min Mat Gar Fac Gar Used RIF Installer . | . . . . . . . . . Robots Hacked . | . . . . . . . . . Non-combat . | . . . . . . . . . Combat . | . . . . . . . . . Robot Hacks Applied . | . . . . . . . . . Relay Couplers Released . | . . . . . . . . . Fabnet Peak Effective % . | . . . . . . . . . Robots Rewired . | . . . . . . . . . Allies Hacked . | . . . . . . . . . Hacks Repelled . | . . . . . . . . . Allies | -11 -10 -10 -10 -9 -8 -8 -7 -7 -------- Run | Yrd Mat Min Exi Min Mat Gar Fac Gar Total Allies 4 | . . . . 3 . 1 . . Largest Group 3 | . . . . 3 . 1 . . Highest-Rated Group 40 | . . . . 40 . 31 . . Highest-Rated Ally 31 | . . . . 16 . 31 . . Total Orders . | . . . . . . . . . Ally Attacks 31 | . . . . 13 . 18 . . Total Damage 424 | . . . . 112 . 312 . . Kills 4 | . . . . 4 . . . . Allies Corrupted . | . . . . . . . . . Allies Melted . | . . . . . . . . . Intel | -11 -10 -10 -10 -9 -8 -8 -7 -7 ------- Run | Yrd Mat Min Exi Min Mat Gar Fac Gar Robot Analysis Total . | . . . . . . . . . Derelict Logs Recovered 3 | . . 2 . 1 . . . . Drone Launches . | . . . . . . . . . Drone Recoveries . | . . . . . . . . . Exploration | -11 -10 -10 -10 -9 -8 -8 -7 -7 ------------- Run | Yrd Mat Min Exi Min Mat Gar Fac Gar Turns Passed 913 | . 182 92 122 180 47 195 41 54 Spaces Moved 1191 | 1 195 122 216 249 79 183 68 78 Core 24 | . . . . . . 24 . . Treads . | . . . . . . . . . Legs 38 | 1 37 . . . . . . . Wheels . | . . . . . . . . . Hover 1129 | . 158 122 216 249 79 159 68 78 Flight . | . . . . . . . . . Fastest Speed 56 | 120 56 56 56 56 56 56 56 56 Average Speed 59 | 120 68 56 56 56 56 61 56 62 Slowest Speed 120 | 120 120 56 56 56 56 100 56 120 Overloaded Moves . | . . . . . . . . . Propulsion Burnouts . | . . . . . . . . . Robots Hopped . | . . . . . . . . . Cave-ins Triggered . | . . . . . . . . . Exploration Rate (%) 27 | 2 34 34 59 52 8 35 2 21 Regions Visited 8 Branch Regions 3 Pre-discovered Areas 1 | . . . 1 . . . . . Known Exits Taken 2 | . . . . . 1 . 1 . Unknown Exits Taken 5 | 1 1 1 1 1 . . . . Scrap Searched 1 | . . 1 . . . . . . Spaces Dug . | . . . . . . . . . Terrain Destroyed . | . . . . . . . . . Melee . | . . . . . . . . . Projectile . | . . . . . . . . . AOE . | . . . . . . . . . Terrain Rammed 2 | . . . . . . . . 2 Walls Destroyed . | . . . . . . . . . Machines Disabled . | . . . . . . . . . Actions | -11 -10 -10 -10 -9 -8 -8 -7 -7 --------- Run | Yrd Mat Min Exi Min Mat Gar Fac Gar Total 1329 | . 224 136 217 269 81 251 70 81 Wait 26 | . . 3 . 9 1 13 . . Move 1185 | . 194 121 215 248 79 182 68 78 Hop . | . . . . . . . . . Pick Up 11 | . 5 2 1 . . 1 2 . Fast Attach 6 | . 4 1 . . . 1 . . Attach 8 | . . . . . . 8 . . Detach 6 | . 3 . . . . 3 . . Swap 1 | . . . . . . 1 . . Drop 9 | . 5 3 1 . . . . . Fire 40 | . 13 6 . 12 . 8 . 1 Melee . | . . . . . . . . . Ram 3 | . . . . . 1 . . 2 Kick . | . . . . . . . . . Crush . | . . . . . . . . . Escape Stasis 34 | . . . . . . 34 . . Rewire . | . . . . . . . . . Trap . | . . . . . . . . . Miscellaneous . | . . . . . . . . . Route ------- -11/Scrapyard -10/Materials -10/Mines -10/Exiles (discovered 2 exits: *Min x2) -9/Mines -8/Materials -8/Garrison -7/Factory -7/Garrison (discovered 3 exits: [Fac x3]) History --------- Turn | Location | Event 1 | -11/Scrapyard | Discovered new exit (range 0) 1 | -11/Scrapyard | Entered Materials 122 | -10/Materials | Discovered new exit (range 8) 183 | -10/Materials | Entered Mines 198 | -10/Mines | Learned Materials emergency access door positions 220 | -10/Mines | Learned Materials terminal intel 229 | -10/Mines | Met a Derelict shopkeep closing up shop 272 | -10/Mines | Deemed a non-threat by the Exiles lab entrance 272 | -10/Mines | Discovered new exit (range 5) 275 | -10/Mines | Entered Exiles 284 | -10/Exiles | Discovered new exit (range 15) 291 | -10/Exiles | Met 8R-AWN 299 | -10/Exiles | Met EX-HEX 316 | -10/Exiles | Build established: Mutant 318 | -10/Exiles | Met EX-BIN 324 | -10/Exiles | Aligned with FarCom system 324 | -10/Exiles | Given EX-Vault access code 337 | -10/Exiles | Opened EX-Vault 342 | -10/Exiles | Found 0b10 Alert Chip 355 | -10/Exiles | Warned to stay clear of 0b10 Research branches 373 | -10/Exiles | Met EX-DEC 376 | -10/Exiles | Learned location of Zion (-6) 393 | -10/Exiles | Discovered new exit (range 10) 397 | -10/Exiles | Left Exiles lab with 0b10 Alert Chip 397 | -10/Exiles | Entered Mines 407 | -9/Mines | Met a Derelict who couldn't figure out how to use a Trap Extractor 459 | -9/Mines | Learned Materials trap positions 474 | -9/Mines | Assisted by bots powering up and referring to "LRC-V3" 501 | -9/Mines | Met a Derelict bent on vengeance 572 | -9/Mines | Discovered new exit (range 8) 577 | -9/Mines | Entered Materials 577 | -8/Materials | Evolved 4 slots: Propulsion x1, Utility x2, Weapon x1 578 | -8/Materials | Loaded intel: 15 trap records 580 | -8/Materials | Loaded intel: 11 terminal locations 623 | -8/Materials | Identified exit to Garrison 624 | -8/Materials | Entered Garrison 655 | -8/Garrison | Rescued a captive Derelict 680 | -8/Garrison | Lost 5 parts (1p2n1u1w) 744 | -8/Garrison | Triggered checkpoint 807 | -8/Garrison | Discovered new exit (range 14) 819 | -8/Garrison | Entered Factory 819 | -7/Factory | Evolved 2 slots: Propulsion x1, Utility x1 860 | -7/Factory | Identified exit to Garrison 860 | -7/Factory | Entered Garrison 883 | -7/Garrison | Discovered new exit (range 34) 883 | -7/Garrison | Discovered new exit (range 78) 883 | -7/Garrison | Discovered new exit (range 79) 914 | -7/Garrison | Self-destructed Last Messages --------------- 00883_ Connecting with Garrison Terminal... 00883_ EXIT=FOUND >>Download(Registry) Retrieving Garrison registry... Downloaded map data. Downloaded component registry. Downloaded security status. 00883_ ALERT: Suspicious activity at Terminal G002. Transmitting hostile system tracking data. 00902_ Slammed into Wall. 00902_ Destabilizing: System interference. 00902_ Lgt. Assault Rifle temporarily disabled. 00902_ Imp. Hover Unit broken. 00902_ Destabilizing: Short circuit. 00913_ Slammed into Wall. 00913_ 0b10 Alert Chip broken. 00913_ Destabilizing: Short circuit. 00913_ Destabilizing: System interference. 00913_ Lgt. Assault Rifle temporarily disabled. Garrison Door activated. Map ----- +----------------------------------------------------+ | ??# #?# #??????????# #?????????????# #????????# | | ??# #?# #??????????# #?????????????# #????????# | | ### ### ############++#######???????# #????????# | | ^^ #??????##+########## | | ^^ #??????# | | ^ #??????# | | ########+#############+### #??????# ######### | | ???????# #???????????# #?# #??????# ######### | | ???????# #???????????# #?# #??????# + + | | ???????# #???????????# #?# #??????# ##### ### | | ???????# ############# #?# ######## #???# #?# | | ???????# #?# ##ssss## #???# #?# | | ???????############### #?# ##""""## ##??# #?# | | ?????????????????????# ### ####+### | | ?????????????????????# + ^ | | ?????????????????????##### ^ | | ?????????????????????????# ## ##^^^########## | | ???????????????????????### ## ##^^^###??????? | | ???????????????????????#g" " #??????? | | ???????????????????????# "h "g#??????? | | ???????????????????????#g" "g#??????? | | ???????????????????????# " "g#??????? | | ???????############????#+# ## ## ###??????? | | ###????#""""""""""#????# # ## ## #????????? | | #????#"""!!!!"""#????# # ########## | | #????#"" ""#????# @ + | | #????#"! !"#????# # ### ### ## | | #????#"! !"#????# # ## ## #?# #?# #? | | ###??#"! !"#????# + ##ggg ## #?# #?# #? | | " #??#"! !"#????# # ######## #?# #?# #? | | " #??#"! !"#????# # #??????# #?# #?# #? | | " #??#"! !"#????# + #??????# #?# ###+## | | ###??#"" ""#????#g# #??????# #?# ## # | | #????###### ####????#g# #??????# ###+##"""# | | ########### #########g#^^^#??????# | | ^^^#??????# | | #??????# | | ##### #??????# #######+++++ | | ????# ######### #####+#####??????# #?????# | | ????# #???????# #???# #??????????# #???### | | ????# #???????# #???# #??????????# #???#"" | | ????# #?????### #???# #??????????# #???#" | | ????# #?????# ##### #??????????# #???#" | | ????# #?????# + #??????????# #???#"" | | ????# #?????# #####+###????????# #???#""""""" | | ????# #?????### ###/////#????????# #???####+### | | ????# #???????# /#????????# #?????## #?# | | ????# #???????# /#????????# #??#### ### | | ????# #???????######/////#????????# #### ##+## # | | ????# #????????????#######????????# | +----------------------------------------------------+ Best States ------------- Heat Dissipation 34 Energy Generation 10 Energy Capacity 250 Matter Stores 300 Matter Capacity 300 Sight Range 16 Terrain Scan Density 10 Evasion (%) 55 Item Schematics ----------------- Hammer | -10/Materials | Hacked Robot Schematics ------------------ None Fabricated ------------ Nothing Alien Tech Used ----------------- None Achievements -------------- None Challenges ------------ None Game ------ Seed IntegratedMissileBox Manual? 0 Play Time 00:11:30 Cumulative 785.6 hours Start 2024.07.06 @ 12:06:23 End 2024.07.06 @ 15:07:44 Sessions 3 Manual Loads 0 Difficulty Rogue Special Mode None Game No. 902 Rogue 624 Adventurer 124 Explorer 154 Win Type - Total 31 Types 25/0/4/1/0/0/0/1/0 Lore% 84 Gallery% 92 Achievement% 77 Wizard Run 0 Options --------- Layout 0 ASCII 1 Keyboard 1 Movement Numpad Keybinds 0 Fullscreen 2 Font 18/Smallcaps Map View 76x50 Zoom Use 0% Tactical HUD 1 Map Filters NONE Filters NONE Steam 1 RUN: d22010db-95c2-45cf-8bc2-49ea7243db9d